fUSD/lending_fUSD_20251201
["ID","MTS","AMOUNT","RATE_DAILY","PERIOD"]
[395246537,1764567038407,-6227.699,0.00013198,2]
[395246538,1764567038417,-270.802,0.00013198,2]
[395246539,1764567038426,-13970.72633566,0.00013199,2]
[395246540,1764567038435,-1000.0,0.00013299,2]
[395246541,1764567038444,-462.66126224,0.00013319,2]
[395246542,1764567038453,-40773.61710728,0.00013387,2]
[395246543,1764567038463,-13970.72633565,0.0001361,2]
[395246544,1764567038474,-1931.13207761,0.00013612,2]
[395246545,1764567038483,-53571.88497209,0.00013622,2]
[395246546,1764567038493,-1707.00447917,0.00013642,2]
[395246547,1764567038502,-1138.0444,0.00013671,2]
[395246548,1764567038511,-500.0,0.00013698,2]
[395246549,1764567038520,-500.0,0.00013698,2]
[395246550,1764567038532,-500.0,0.00013698,2]
[395246551,1764567038544,-500.0,0.00013698,2]
[395246552,1764567038554,-331.0821075,0.00013698,2]
[395246553,1764567038564,-500.0,0.00013698,2]
[395246554,1764567038574,-500.0,0.00013698,2]
[395246555,1764567038584,-500.0,0.00013698,2]
[395246556,1764567038593,-500.0,0.00013698,2]
[395246557,1764567038602,-500.0,0.00013698,2]
[395246558,1764567038616,-500.0,0.00013698,2]
[395246559,1764567038626,-500.0,0.00013698,2]
[395246560,1764567038636,-269.91867043,0.00013698,2]
[395246561,1764567038645,-500.0,0.00013698,2]
[395246562,1764567038654,-580.07246676,0.00013698,2]
[395246563,1764567038663,-500.0,0.00013698,2]
[395246564,1764567038673,-500.0,0.00013698,2]
[395246565,1764567038682,-500.0,0.00013698,2]
[395246566,1764567038691,-500.0,0.00013698,2]
[395246567,1764567038700,-500.0,0.00013698,2]
[395246568,1764567038709,-500.0,0.00013698,2]
[395246569,1764567038718,-500.0,0.00013698,2]
[395246570,1764567038728,-500.0,0.00013698,2]
[395246571,1764567038737,-500.0,0.00013698,2]
[395246572,1764567038745,-500.0,0.00013698,2]
[395246573,1764567038754,-500.0,0.00013698,2]
[395246574,1764567038763,-500.0,0.00013698,2]
[395246575,1764567038772,-500.0,0.00013698,2]
[395246576,1764567038782,-500.0,0.00013698,2]
[395246577,1764567038791,-500.0,0.00013698,2]
[395246578,1764567038800,-500.0,0.00013698,2]
[395246579,1764567038809,-500.0,0.00013698,2]
[395246580,1764567038818,-500.0,0.00013698,2]
[395246581,1764567038827,-500.0,0.00013698,2]
[395246582,1764567038837,-500.0,0.00013698,2]
[395246583,1764567038846,-500.0,0.00013698,2]
[395246584,1764567038855,-500.0,0.00013698,2]
[395246585,1764567038864,-500.0,0.00013698,2]
[395246586,1764567038873,-500.0,0.00013698,2]
[395246587,1764567038883,-500.0,0.00013698,2]
[395246588,1764567038892,-2555.15,0.00013698,2]
[395246589,1764567038901,-2555.15,0.00013698,2]
[395246590,1764567038910,-2555.15,0.00013698,2]
[395246591,1764567038919,-2555.15,0.00013698,2]
[395246592,1764567038928,-5156.82,0.00013698,2]
[395246593,1764567038937,-5156.82,0.00013698,2]
[395246594,1764567038948,-5156.82,0.00013698,2]
[395246595,1764567038957,-5156.82,0.00013698,2]
[395246596,1764567038966,-500.0,0.00013698,2]
[395246597,1764567038975,-500.0,0.00013698,2]
[395246598,1764567038985,-500.0,0.00013698,2]
[395246599,1764567038995,-500.0,0.00013698,2]
[395246600,1764567039005,-500.0,0.00013698,2]
[395246601,1764567039015,-500.0,0.00013698,2]
[395246602,1764567039024,-500.0,0.00013698,2]
[395246603,1764567039034,-500.0,0.00013698,2]
[395246604,1764567039044,-500.0,0.00013698,2]
[395246605,1764567039053,-500.0,0.00013698,2]
[395246606,1764567039063,-500.0,0.00013698,2]
[395246607,1764567039072,-500.0,0.00013698,2]
[395246608,1764567039082,-500.0,0.00013698,2]
[395246609,1764567039091,-500.0,0.00013698,2]
[395246610,1764567039100,-500.0,0.00013698,2]
[395246611,1764567039110,-1334.08,0.00013698,2]
[395246612,1764567039120,-1190.72,0.00013698,2]
[395246613,1764567039129,-1190.72,0.00013698,2]
[395246614,1764567039138,-1190.72,0.00013698,2]
[395246615,1764567039148,-1190.72,0.00013698,2]
[395246616,1764567039157,-1190.72,0.00013698,2]
[395246617,1764567039167,-1190.72,0.00013698,2]
[395246618,1764567039177,-1190.72,0.00013698,2]
[395246619,1764567039187,-1190.72,0.00013698,2]
[395246620,1764567039197,-1190.72,0.00013698,2]
[395246621,1764567039206,-1190.72,0.00013698,2]
[395246622,1764567039216,-1190.72,0.00013698,2]
[395246623,1764567039225,-1190.72,0.00013698,2]
[395246624,1764567039235,-1190.72,0.00013698,2]
[395246625,1764567039244,-1190.72,0.00013698,2]
[395246626,1764567039253,-1190.72,0.00013698,2]
[395246627,1764567039263,-1190.72,0.00013698,2]
[395246628,1764567039272,-1190.72,0.00013698,2]
[395246629,1764567039282,-1190.72,0.00013698,2]
[395246630,1764567039291,-1190.72,0.00013698,2]
[395246631,1764567039300,-1190.72,0.00013698,2]
[395246632,1764567039310,-1190.72,0.00013698,2]
[395246633,1764567039319,-1190.72,0.00013698,2]
[395246634,1764567039328,-1190.72,0.00013698,2]
[395246635,1764567039337,-1190.87522195,0.00013698,2]
[395246636,1764567039346,-500.0,0.00013698,2]
[395246637,1764567039355,-500.0,0.00013698,2]
[395246638,1764567039363,-500.0,0.00013698,2]
[395246639,1764567039372,-500.0,0.00013698,2]
[395246640,1764567039383,-500.0,0.00013698,2]
[395246641,1764567039404,-500.0,0.00013698,2]
[395246642,1764567039415,-500.0,0.00013698,2]
[395246643,1764567039425,-500.0,0.00013698,2]
[395246644,1764567039435,-500.0,0.00013698,2]
[395246645,1764567039445,-500.0,0.00013698,2]
[395246646,1764567039454,-500.0,0.00013698,2]
[395246647,1764567039463,-500.0,0.00013698,2]
[395246648,1764567039472,-500.0,0.00013698,2]
[395246649,1764567039482,-500.0,0.00013698,2]
[395246650,1764567039491,-500.0,0.00013698,2]
[395246651,1764567039500,-500.0,0.00013698,2]
[395246652,1764567039509,-500.0,0.00013698,2]
[395246653,1764567039518,-559.01212268,0.00013698,2]
[395246654,1764567039528,-500.0,0.00013698,2]
[395246655,1764567039540,-500.0,0.00013698,2]
[395246656,1764567039548,-500.0,0.00013698,2]
[395246657,1764567039557,-500.0,0.00013698,2]
[395246658,1764567039567,-484.18397562,0.00013698,2]
[395246660,1764567039576,-500.0,0.00013698,2]
[395246661,1764567039584,-500.0,0.00013698,2]
[395246662,1764567039593,-500.0,0.00013698,2]
[395246663,1764567039605,-567.86060721,0.00013698,2]
[395246664,1764567039615,-500.0,0.00013698,2]
[395246665,1764567039624,-500.0,0.00013698,2]
[395246666,1764567039633,-500.0,0.00013698,2]
[395246667,1764567039643,-500.0,0.00013698,2]
[395246668,1764567039654,-500.0,0.00013698,2]
[395246669,1764567039663,-501.94091737,0.00013698,2]
[395246670,1764567039673,-500.0,0.00013698,2]
[395246671,1764567039682,-500.0,0.00013698,2]
[395246672,1764567039692,-500.0,0.00013698,2]
[395246673,1764567039701,-500.0,0.00013698,2]
[395246674,1764567039710,-500.0,0.00013698,2]
[395246675,1764567039719,-593.21617524,0.00013698,2]
[395246676,1764567039729,-507.44536732,0.00013698,2]
[395246677,1764567039739,-300.0,0.00013698,2]
[395246678,1764567039748,-300.0,0.00013698,2]
[395246679,1764567039758,-300.0,0.00013698,2]
[395246680,1764567039767,-349.89110636,0.00013698,2]
[395246681,1764567039778,-729.23,0.00013698,2]
[395246682,1764567039788,-500.0,0.00013698,2]
[395246683,1764567039797,-500.0,0.00013698,2]
[395246684,1764567039808,-500.0,0.00013698,2]
[395246685,1764567039818,-500.0,0.00013698,2]
[395246686,1764567039828,-500.0,0.00013698,2]
[395246687,1764567039837,-500.0,0.00013698,2]
[395246688,1764567039846,-1639.03,0.00013698,2]
[395246689,1764567039856,-1639.03,0.00013698,2]
[395246690,1764567039866,-1639.03,0.00013698,2]
[395246691,1764567039875,-1639.03,0.00013698,2]
[395246692,1764567039885,-1639.03,0.00013698,2]
[395246693,1764567039894,-1639.03,0.00013698,2]
[395246694,1764567039903,-1639.03,0.00013698,2]
[395246695,1764567039912,-1639.03,0.00013698,2]
[395246696,1764567039921,-1639.03,0.00013698,2]
[395246697,1764567039930,-1639.03,0.00013698,2]
[395246698,1764567039939,-1639.03,0.00013698,2]
[395246699,1764567039948,-1639.03,0.00013698,2]
[395246700,1764567039958,-1639.03,0.00013698,2]
[395246701,1764567039967,-1639.03,0.00013698,2]
[395246702,1764567039976,-1639.03,0.00013698,2]
[395246703,1764567039985,-1639.03,0.00013698,2]
[395246704,1764567039994,-1639.03,0.00013698,2]
[395246705,1764567040004,-1639.03,0.00013698,2]
[395246706,1764567040013,-1639.03,0.00013698,2]
[395246707,1764567040022,-1639.03,0.00013698,2]
[395246708,1764567040031,-1639.03,0.00013698,2]
[395246709,1764567040040,-1639.03,0.00013698,2]
[395246710,1764567040049,-1639.03,0.00013698,2]
[395246711,1764567040059,-1639.22377214,0.00013698,2]
[395246712,1764567040068,-500.0,0.00013698,2]
[395246713,1764567040077,-500.0,0.00013698,2]
[395246714,1764567040086,-500.0,0.00013698,2]
[395246715,1764567040096,-500.0,0.00013698,2]
[395246716,1764567040105,-333.85230808,0.00013698,2]
[395246717,1764567040114,-232.46,0.00013699,2]
[395246718,1764567040125,-166.66,0.00013699,2]
[395246719,1764567040135,-600.0,0.00013699,2]
[395246720,1764567040144,-9999.99,0.00013699,2]
[395246721,1764567040153,-19443.82,0.00013699,2]
[395246722,1764567040163,-220.31769748,0.00013706,2]
[395246723,1764567040172,-300.0,0.00013723,2]
[395246724,1764567040182,-300.0,0.00013723,2]
[395246725,1764567040193,-300.0,0.00013723,2]
[395246726,1764567040203,-300.0,0.00013723,2]
[395246727,1764567040212,-300.0,0.00013723,2]
[395246728,1764567040221,-300.0,0.00013723,2]
[395246729,1764567040231,-300.0,0.00013723,2]
[395246730,1764567040240,-300.0,0.00013723,2]
[395246731,1764567040249,-300.0,0.00013723,2]
[395246732,1764567040258,-250.0,0.00013723,2]
[395246733,1764567040267,-300.0,0.00013723,2]
[395246734,1764567040277,-195.0,0.00013723,2]
[395246735,1764567040286,-250.0,0.00013723,2]
[395246736,1764567040295,-195.0,0.00013723,2]
[395246737,1764567040304,-200.0,0.00013739,2]
[395246738,1764567040313,-500.0,0.00013739,2]
[395246739,1764567040322,-200.0,0.00013739,2]
[395246740,1764567040331,-456.9881626,0.00013806,2]
[395246741,1764567040340,-40773.61710728,0.00013826,2]
[395246742,1764567040349,-166.66,0.00013836,2]
[395246743,1764567040358,-157.6153451,0.00013859,2]
[395246744,1764567040367,-250.0,0.00013863,2]
[395246745,1764567040384,-195.0,0.00013863,2]
[395246746,1764567040398,-193.0,0.00013863,2]
[395246747,1764567040408,-195.0,0.00013863,2]
[395246748,1764567040417,-996.88435058,0.00013924,2]
[395246749,1764567040426,-1334.08,0.00013972,2]
[395246750,1764567040435,-729.23,0.00013972,3]
[395246751,1764567040444,-166.66,0.00013973,2]
[395246752,1764567040454,-541.73135515,0.00014021,2]
[395246753,1764567040463,-500.0,0.00014021,2]
[395246754,1764567040472,-13970.72633565,0.00014021,2]
[395246755,1764567040481,-304.0,0.00014047,2]
[395246756,1764567040491,-328.66083648,0.00014048,2]
[395246757,1764567040501,-335.86739996,0.00014075,2]
[395246758,1764567040511,-415.0,0.00014081,2]
[395246759,1764567040520,-255.0,0.00014096,2]
[395246760,1764567040535,-1833.0,0.00014109,2]
[395246761,1764567040545,-166.66,0.0001411,2]
[395246762,1764567040554,-2555.15,0.00014157,2]
[395246763,1764567040563,-5156.82,0.00014157,2]
[395246764,1764567040575,-500.0,0.00014176,2]
[395246765,1764567040584,-1707.00447917,0.00014185,2]
[395246766,1764567040593,-420.0,0.00014199,2]
[395246767,1764567040602,-420.0,0.00014199,2]
[395246768,1764567040612,-1680.0,0.00014242,2]
[395246769,1764567040621,-1334.08,0.00014246,2]
[395246770,1764567040630,-166.66,0.00014247,2]
[395246771,1764567040639,-600.0,0.00014247,2]
[395246772,1764567040649,-1536.0,0.00014248,2]
[395246773,1764567040658,-40773.61710728,0.00014265,2]
[395246774,1764567040667,-200.0,0.00014287,2]
[395246775,1764567040676,-500.0,0.00014287,2]
[395246776,1764567040685,-200.0,0.00014287,2]
[395246777,1764567040696,-500.0,0.00014373,2]
[395246778,1764567040706,-500.0,0.00014373,2]
[395246779,1764567040715,-500.0,0.00014373,2]
[395246780,1764567040724,-500.0,0.00014373,2]
[395246781,1764567040733,-500.0,0.00014373,2]
[395246782,1764567040743,-295.21198684,0.00014373,2]
[395246783,1764567040752,-500.0,0.00014373,2]
[395246784,1764567040761,-500.0,0.00014373,2]
[395246785,1764567040771,-500.0,0.00014373,2]
[395246786,1764567040780,-500.0,0.00014373,2]
[395246787,1764567040789,-500.0,0.00014373,2]
[395246788,1764567040799,-162.47379321,0.00014373,2]
[395246789,1764567040808,-500.0,0.00014373,2]
[395246790,1764567040818,-500.0,0.00014373,2]
[395246791,1764567040827,-500.0,0.00014373,2]
[395246792,1764567040836,-500.0,0.00014373,2]
[395246793,1764567040846,-500.0,0.00014373,2]
[395246794,1764567040855,-500.0,0.00014373,2]
[395246795,1764567040863,-500.0,0.00014373,2]
[395246796,1764567040872,-500.0,0.00014373,2]
[395246797,1764567040881,-164.88068928,0.00014373,2]
[395246798,1764567040890,-166.66,0.00014384,2]
[395246799,1764567040901,-2476.70565861,0.0001439,2]
[395246800,1764567040910,-13970.72633565,0.00014433,2]
[395246801,1764567040919,-1334.08,0.0001452,2]
[395246802,1764567040928,-729.23,0.0001452,5]
[395246803,1764567040937,-151.0,0.00014521,2]
[395246804,1764567040948,-40229.2758886,0.000146,2]
[395246805,1764567040957,-157.6153451,0.00014619,2]
[395246806,1764567040966,-5676.2,0.00014664,2]
[395246807,1764567040975,-40773.61710728,0.00014704,2]
[395246808,1764567040985,-1707.00447917,0.00014728,2]
[395246809,1764567040994,-1334.08,0.00014794,2]
[395246810,1764567041004,-729.23,0.00014794,6]
[395246811,1764567041013,-600.0,0.00014795,2]
[395246812,1764567041022,-200.0,0.00014835,2]
[395246813,1764567041031,-500.0,0.00014835,2]
[395246814,1764567041040,-200.0,0.00014835,2]
[395246815,1764567041050,-13970.72633565,0.00014844,2]
[395246816,1764567041059,-225.39616974,0.000149,2]
[395246817,1764567041068,-1007.34097889,0.00014921,2]
[395246818,1764567041077,-1008.35390567,0.00014921,2]
[395246819,1764567041088,-1000.0,0.00014921,2]
[395246820,1764567041098,-1000.0,0.00014921,2]
[395246821,1764567041107,-1000.0,0.00014921,2]
[395246822,1764567041117,-1009.2603075,0.00014921,2]
[395246823,1764567041126,-159.45765875,0.00014921,2]
[395246824,1764567041137,-1001.00569167,0.00014921,2]
[395246825,1764567041147,-1036.01756755,0.00014921,2]
[395246826,1764567041156,-1000.0,0.00014921,2]
[395246827,1764567041166,-1000.0,0.00014921,2]
[395246828,1764567041175,-1000.0,0.00014921,2]
[395246829,1764567041184,-500.8341776,0.00014921,2]
[395246830,1764567041195,-1000.0,0.00014921,2]
[395246831,1764567041205,-1000.0,0.00014921,2]
[395246832,1764567041214,-503.29972338,0.00014921,2]
[395246833,1764567041222,-1000.0,0.00014921,2]
[395246834,1764567041232,-481.4168575,0.00014921,2]
[395246835,1764567041243,-151.0,0.00014971,2]
[395246836,1764567041252,-151.0,0.00014971,2]
[395246837,1764567041261,-151.0,0.00014971,2]
[395246838,1764567041270,-152.0,0.00014971,2]
[395246839,1764567041279,-152.0,0.00014971,2]
[395246840,1764567041289,-152.0,0.00014971,2]
[395246841,1764567041298,-152.0,0.00014971,2]
[395246842,1764567041307,-152.0,0.00014971,2]
[395246843,1764567041317,-151.0,0.00014997,2]
[395246844,1764567041326,-221927.36579948,0.00015,4]
[395246845,1764567041336,-10006.51407668,0.00015,2]
[395246846,1764567041346,-1334.08,0.00015068,2]
[395246847,1764567041354,-729.23,0.00015068,7]
[395246848,1764567041364,-322.63,0.00015068,2]
[395246849,1764567041373,-151.0,0.00015069,2]
[395246850,1764567041384,-40773.61710728,0.00015144,2]
[395246851,1764567041395,-275.45,0.00015205,2]
[395246852,1764567041650,-13970.72633565,0.00015255,2]
[395246853,1764567041660,-1707.00447917,0.00015271,2]
[395246854,1764567041670,-150.00000001,0.00015288,2]
[395246855,1764567041679,-163.26516965,0.00015288,2]
[395246856,1764567041688,-150.0,0.00015288,2]
[395246857,1764567041699,-150.0,0.00015288,2]
[395246858,1764567041709,-150.0,0.00015288,2]
[395246859,1764567041719,-224.86945404,0.00015288,2]
[395246860,1764567041729,-150.0,0.00015288,2]
[395246861,1764567041739,-150.0,0.00015288,2]
[395246862,1764567041749,-150.0,0.00015288,2]
[395246863,1764567041760,-150.0,0.00015288,2]
[395246864,1764567041769,-150.0,0.00015288,2]
[395246865,1764567041779,-150.0,0.00015288,2]
[395246866,1764567041788,-150.0,0.00015288,2]
[395246867,1764567041797,-150.0,0.00015288,2]
[395246868,1764567041807,-150.0,0.00015288,2]
[395246869,1764567041816,-190.82998658,0.00015288,2]
[395246870,1764567041826,-150.0,0.00015288,2]
[395246871,1764567041835,-433.0,0.00015291,2]
[395246872,1764567041845,-1517.64,0.000153,2]
[395246873,1764567041854,-163.26516965,0.00015305,2]
[395246874,1764567041864,-224.86945404,0.00015305,2]
[395246875,1764567041874,-150.0,0.0001531,2]
[395246876,1764567041883,-150.0,0.00015313,2]
[395246877,1764567041893,-150.0,0.00015316,2]
[395246878,1764567041902,-150.0,0.00015317,2]
[395246879,1764567041912,-163.26516965,0.00015322,2]
[395246880,1764567041920,-224.86945404,0.00015322,2]
[395246881,1764567041929,-150.0,0.00015332,2]
[395246882,1764567041940,-150.0,0.00015338,2]
[395246883,1764567041950,-163.26516965,0.00015339,2]
[395246884,1764567041959,-224.86945404,0.00015339,2]
[395246885,1764567041969,-150.0,0.00015339,2]
[395246886,1764567041979,-1334.08,0.00015342,2]
[395246887,1764567041988,-729.23,0.00015342,8]
[395246888,1764567041997,-150.0,0.00015342,2]
[395246889,1764567042006,-600.0,0.00015342,2]
[395246890,1764567042015,-150.0,0.00015344,2]
[395246891,1764567042025,-150.0,0.00015347,2]
[395246892,1764567042034,-150.0,0.00015354,2]
[395246893,1764567042044,-163.26516965,0.00015356,2]
[395246894,1764567042054,-224.86945404,0.00015356,2]
[395246895,1764567042065,-150.0,0.00015362,2]
[395246896,1764567042074,-150.0,0.00015363,2]
[395246897,1764567042084,-150.0,0.00015373,2]
[395246898,1764567042094,-163.26516965,0.00015373,2]
[395246899,1764567042104,-224.86945404,0.00015373,2]
[395246900,1764567042113,-150.0,0.00015376,2]
[395246901,1764567042123,-150.0,0.00015377,2]
[395246902,1764567042133,-157.6153451,0.0001538,2]
[395246903,1764567042142,-200.0,0.00015383,2]
[395246904,1764567042152,-500.0,0.00015383,2]
[395246905,1764567042162,-200.0,0.00015383,2]
[395246906,1764567042171,-150.0,0.00015388,2]
[395246907,1764567042181,-163.26516965,0.00015391,2]
[395246908,1764567042190,-224.86945404,0.00015391,2]
[395246909,1764567042200,-150.0,0.00015391,2]
[395246910,1764567042209,-150.0,0.00015397,2]
[395246911,1764567042219,-150.0,0.00015398,2]
[395246912,1764567042228,-13856.4797207,0.000154,2]
[395246913,1764567042239,-504.59701012,0.000154,2]
[395246914,1764567042249,-150.0,0.00015401,2]
[395246916,1764567042259,-150.0,0.00015401,2]
[395246918,1764567042268,-150.0,0.00015407,2]
[395246919,1764567042277,-163.26516965,0.00015408,2]
[395246920,1764567042286,-224.86945404,0.00015408,2]
[395246921,1764567042295,-150.0,0.00015413,2]
[395246922,1764567042305,-150.0,0.0001542,2]
[395246923,1764567042314,-163.26516965,0.00015425,2]
[395246924,1764567042323,-224.86945404,0.00015425,2]
[395246925,1764567042332,-150.0,0.00015429,2]
[395246926,1764567042341,-150.0,0.00015435,2]
[395246927,1764567042350,-150.0,0.00015437,2]
[395246928,1764567042359,-150.0,0.00015438,2]
[395246930,1764567042368,-163.26516965,0.00015442,2]
[395246932,1764567042377,-224.86945404,0.00015442,2]
[395246933,1764567042387,-150.0,0.00015442,2]
[395246935,1764567042396,-150.0,0.00015442,2]
[395246936,1764567042407,-2555.15,0.00015451,2]
[395246937,1764567042417,-5156.82,0.00015451,2]
[395246938,1764567042426,-150.0,0.00015452,2]
[395246940,1764567042435,-150.0,0.00015458,2]
[395246942,1764567042444,-150.0,0.00015458,2]
[395246944,1764567042453,-163.26516965,0.00015459,2]
[395246947,1764567042462,-224.86945404,0.00015459,2]
[395246949,1764567042471,-150.0,0.00015463,2]
[395246951,1764567042481,-150.0,0.00015464,2]
[395246952,1764567042490,-150.0,0.00015466,2]
[395246953,1764567042500,-500.0,0.00015468,2]
[395246954,1764567042510,-500.0,0.00015468,2]
[395246955,1764567042519,-1195.52666433,0.00015468,2]
[395246957,1764567042533,-502.31396742,0.00015468,2]
[395246959,1764567042545,-475.59481342,0.00015468,2]
[395246960,1764567042555,-1502.96420978,0.00015468,2]
[395246961,1764567042565,-1500.0,0.00015468,2]
[395246962,1764567042577,-463.74871303,0.00015468,2]
[395246963,1764567042587,-915.43921071,0.00015468,2]
[395246964,1764567042596,-163.26516965,0.00015476,2]
[395246965,1764567042605,-224.86945404,0.00015476,2]
[395246966,1764567042617,-150.0,0.00015486,2]
[395246967,1764567042625,-150.0,0.00015486,2]
[395246968,1764567042634,-150.0,0.00015488,2]
[395246969,1764567042643,-163.26516965,0.00015494,2]
[395246970,1764567042652,-224.86945404,0.00015494,2]
[395246971,1764567042662,-150.0,0.00015494,2]
[395246972,1764567042671,-150.0,0.00015496,2]
[395246973,1764567042681,-150.0,0.00015507,2]
[395246974,1764567042691,-1703.0,0.00015508,2]
[395246975,1764567042701,-150.0,0.00015508,2]
[395246976,1764567042710,-1033.0,0.00015508,2]
[395246977,1764567042722,-150.0,0.00015508,2]
[395246978,1764567042732,-230.64385222,0.00015508,2]
[395246979,1764567042741,-150.0,0.00015508,2]
[395246980,1764567042750,-500.0,0.00015508,2]
[395246981,1764567042759,-500.0,0.00015508,2]
[395246982,1764567042769,-150.0,0.00015508,2]
[395246983,1764567042778,-500.0,0.00015508,2]
[395246984,1764567042788,-150.0,0.00015508,2]
[395246985,1764567042798,-500.0,0.00015508,2]
[395246986,1764567042807,-500.0,0.00015508,2]
[395246987,1764567042816,-150.0,0.00015508,2]
[395246988,1764567042825,-500.0,0.00015508,2]
[395246989,1764567042834,-500.0,0.00015508,2]
[395246990,1764567042843,-150.0,0.00015508,2]
[395246991,1764567042852,-150.0,0.00015508,2]
[395246992,1764567042861,-500.0,0.00015508,2]
[395246993,1764567042870,-4205.0,0.00015508,2]
[395246994,1764567042879,-150.0,0.00015508,2]
[395246995,1764567042888,-150.0,0.00015509,2]
[395246996,1764567042897,-163.26516965,0.00015511,2]
[395246997,1764567042907,-224.86945404,0.00015511,2]
[395246998,1764567042916,-150.0,0.00015512,2]
[395246999,1764567042925,-150.0,0.00015514,2]
[395247000,1764567042934,-150.0,0.00015514,2]
[395247001,1764567042943,-150.0,0.00015526,2]
[395247002,1764567042952,-163.26516965,0.00015528,2]
[395247003,1764567042962,-224.86945404,0.00015528,2]
[395247004,1764567042972,-150.0,0.0001553,2]
[395247005,1764567042981,-150.0,0.0001553,2]
[395247006,1764567042991,-150.0,0.00015537,2]
[395247007,1764567043000,-150.0,0.00015542,2]
[395247008,1764567043009,-163.26516965,0.00015545,2]
[395247009,1764567043019,-224.86945404,0.00015545,2]
[395247010,1764567043029,-150.0,0.00015545,2]
[395247011,1764567043038,-150.0,0.00015552,2]
[395247012,1764567043048,-150.0,0.00015556,2]
[395247013,1764567043058,-150.0,0.00015562,2]
[395247014,1764567043067,-163.26516965,0.00015562,2]
[395247015,1764567043077,-224.86945404,0.00015562,2]
[395247016,1764567043087,-150.0,0.00015562,2]
[395247017,1764567043098,-150.0,0.00015571,2]
[395247018,1764567043108,-587.0,0.00015573,2]
[395247019,1764567043118,-587.0,0.00015573,2]
[395247020,1764567043127,-150.0,0.00015574,2]
[395247021,1764567043137,-163.26516965,0.00015579,2]
[395247022,1764567043147,-224.86945404,0.00015579,2]
[395247023,1764567043156,-40773.61710728,0.00015583,2]
[395247024,1764567043166,-150.0,0.00015583,2]
[395247025,1764567043176,-150.0,0.00015586,2]
[395247026,1764567043187,-150.0,0.00015587,2]
[395247027,1764567043203,-163.26516965,0.00015597,2]
[395247028,1764567043212,-224.86945404,0.00015597,2]
[395247029,1764567043222,-150.0,0.00015597,2]
[395247030,1764567043232,-150.0,0.00015597,2]
[395247031,1764567043241,-150.0,0.00015599,2]
[395247033,1764567043250,-150.0,0.00015612,2]
[395247034,1764567043260,-163.26516965,0.00015614,2]
[395247035,1764567043270,-224.86945404,0.00015614,2]
[395247036,1764567043279,-150.0,0.00015615,2]
[395247037,1764567043289,-1334.08,0.00015616,2]
[395247038,1764567043298,-729.23,0.00015616,9]
[395247039,1764567043308,-150.0,0.00015616,2]
[395247041,1764567043318,-151.0,0.00015617,2]
[395247042,1764567043328,-150.0,0.00015619,2]
[395247043,1764567043337,-150.0,0.00015627,2]
[395247044,1764567043346,-150.0,0.00015627,2]
[395247045,1764567043355,-150.0,0.00015627,2]
[395247046,1764567043364,-163.26516965,0.00015631,2]
[395247047,1764567043374,-224.86945404,0.00015631,2]
[395247048,1764567043383,-500.0,0.00015632,2]
[395247049,1764567043392,-150.0,0.00015637,2]
[395247050,1764567043401,-150.0,0.00015641,2]
[395247051,1764567043411,-1703.0,0.00015645,2]
[395247052,1764567043421,-163.45254521,0.00015645,2]
[395247053,1764567043432,-1033.0,0.00015645,2]